fUSD/lending_fUSD_20241125
["ID","MTS","AMOUNT","RATE_DAILY","PERIOD"]
[343291752,1732547432773,-1585.19,0.00040388,2]
[343291754,1732547432782,-1437.999,0.00040403,2]
[343291756,1732547432791,-1163.0,0.00040403,2]
[343291758,1732547432801,-13677.0,0.00040403,2]
[343291760,1732547432810,-297.042,0.00040403,2]
[343291762,1732547432819,-152.958,0.00040403,2]
[343291764,1732547432828,-983.4849,0.00040498,2]
[343291766,1732547432838,-2719.925,0.00040522,58]
[343291768,1732547432847,-164.548,0.00040522,58]
[343291770,1732547432856,-160.04763447,0.00040561,28]
[343291772,1732547432865,-264.0998,0.00040598,2]
[343291774,1732547432874,-3846.155,0.00040598,2]
[343291776,1732547432883,-4117.12967486,0.00040598,2]
[343291778,1732547432900,-23615.19782783,0.00040598,2]
[343291782,1732547432922,-633.57,0.00040393,2]
[343291784,1732547432931,-10817.08659731,0.00040598,2]
[343291786,1732547432941,-2033.72,0.00040661,2]
[343291788,1732547432950,-1667.13,0.00040695,63]
[343291790,1732547432959,-150.0,0.00040695,2]
[343291792,1732547432968,-23900.0,0.00040698,2]
[343291794,1732547432977,-250.0,0.00040714,120]
[343291796,1732547432986,-690.52,0.00040835,120]
[343291798,1732547432995,-1000.0,0.000409,2]
[343291800,1732547433004,-2500.0,0.000409,2]
[343291802,1732547433013,-157.82,0.00040993,2]
[343291804,1732547433022,-23113.55340269,0.00041,2]
[343291806,1732547433034,-14853.44509731,0.00041,2]
[343291808,1732547433044,-157.82,0.00041013,2]
[343291810,1732547433054,-157.82,0.00041034,2]
[343291812,1732547433064,-157.82,0.00041054,2]
[343291814,1732547433073,-157.82,0.00041075,2]
[343291816,1732547433086,-379.14876461,0.00041095,30]
[343291818,1732547433095,-500.0,0.00041095,30]
[343291820,1732547433104,-500.0,0.00041095,30]
[343291822,1732547433114,-500.0,0.00041095,30]
[343291824,1732547433124,-500.0,0.00041095,30]
[343291826,1732547433134,-500.0,0.00041095,30]
[343291828,1732547433151,-500.0,0.00041095,30]
[343291830,1732547433161,-621.31957542,0.00041095,30]
[343291832,1732547433171,-162.41,0.00041095,30]
[343291834,1732547433182,-500.0,0.00041095,30]
[343291836,1732547433192,-157.82,0.00041095,2]
[343291838,1732547433201,-217.63861007,0.00041096,2]
[343291840,1732547433211,-150.52,0.00041096,2]
[343291842,1732547433221,-412.23,0.00041096,2]
[343291844,1732547433231,-248.0,0.00041096,2]
[343291846,1732547433240,-157.82,0.00041116,2]
[343291848,1732547433250,-157.82,0.00041136,2]
[343291850,1732547433259,-157.82,0.00041157,2]
[343291852,1732547433269,-3303.56446001,0.00041167,15]
[343291854,1732547433279,-157.82,0.00041177,2]
[343291856,1732547433288,-222.86,0.00041187,2]
[343291858,1732547433297,-157.82,0.00041198,2]
[343291860,1732547433306,-153.12,0.00041314,120]
[343291862,1732547433316,-1828.58,0.00041321,2]
[343291864,1732547433325,-14899.0,0.00041325,30]
[343291866,1732547433335,-500.0,0.00041369,30]
[343291868,1732547433344,-500.0,0.00041369,30]
[343291870,1732547433353,-500.0,0.00041369,30]
[343291872,1732547433363,-500.0,0.00041369,30]
[343291874,1732547433372,-500.0,0.00041369,30]
[343291876,1732547433381,-253.97,0.0004137,2]
[343291878,1732547433398,-1722.13,0.00041428,2]
[343291880,1732547433409,-1600.0,0.0004148,2]
[343291882,1732547433418,-6891.5255,0.00041543,2]
[343291884,1732547433427,-166.58,0.00041562,2]
[343291886,1732547433436,-500.2328237,0.00041643,30]
[343291888,1732547433446,-500.0,0.00041643,30]
[343291890,1732547433455,-500.0,0.00041643,30]
[343291892,1732547433464,-199.23412514,0.00041643,30]
[343291894,1732547433473,-500.0,0.00041643,30]
[343291896,1732547433483,-157.95,0.00041719,2]
[343291898,1732547433492,-2930.37,0.00041719,2]
[343291900,1732547433501,-150.0,0.00041745,30]
[343291901,1732547433510,-159.26242659,0.00041763,2]
[343291903,1732547433519,-160.04763443,0.00041767,28]
[343291905,1732547433529,-507.20166867,0.00041917,30]
[343291907,1732547433538,-500.0,0.00041917,30]
[343291909,1732547433548,-500.0,0.00041917,30]
[343291911,1732547433557,-571.75364251,0.00041948,7]
[343291913,1732547433567,-28454.0,0.00042,30]
[343291915,1732547433577,-200.0,0.00042,120]
[343291917,1732547433587,-14882.0,0.00042,2]
[343291919,1732547433596,-151.0,0.00042055,120]
[343291921,1732547433605,-493.73,0.00042116,2]
[343291923,1732547433614,-500.0,0.00042191,30]
[343291925,1732547433623,-500.0,0.00042191,30]
[343291927,1732547433633,-159.57,0.00042284,2]
[343291929,1732547433651,-726.0,0.000423,30]
[343291931,1732547433660,-3303.56446001,0.0004234,15]
[343291933,1732547433670,-166.15,0.00042389,2]
[343291936,1732547433680,-261.79248179,0.00042398,21]
[343291937,1732547433689,-7499.74976329,0.000424,2]
[343291941,1732547433709,-858.411,0.000424,2]
[343291944,1732547433729,-382.818436,0.00040588,2]
[343291946,1732547433740,-250.751564,0.00040588,2]
[343291948,1732547433752,-18856.05573671,0.000424,2]
[343291950,1732547433762,-152.9,0.00042455,2]
[343291952,1732547433772,-214.08986081,0.00042465,30]
[343291954,1732547433781,-500.0,0.00042465,30]
[343291956,1732547433791,-500.0,0.00042465,30]
[343291958,1732547433800,-218.47173187,0.0004249,18]
[343291960,1732547433810,-213.45747162,0.0004249,7]
[343291962,1732547433819,-1000.0,0.0004249,2]
[343291964,1732547433828,-392.5502,0.0004249,2]
[343291966,1732547433837,-668.4291,0.0004249,2]
[343291968,1732547433846,-20000.0,0.000425,4]
[343291970,1732547433855,-4142.81231057,0.000425,30]
[343291972,1732547433867,-952.61730887,0.000425,30]
[343291974,1732547433878,-8649.57038056,0.000425,30]
[343291976,1732547433896,-150.52,0.00042564,2]
[343291977,1732547433906,-159.1865598,0.00042573,10]
[343291978,1732547433915,-500.0,0.00042573,10]
[343291979,1732547433925,-150.89753809,0.00042573,10]
[343291980,1732547433935,-1000.0,0.00042589,2]
[343291981,1732547433945,-22769.82552155,0.0004259,2]
[343291982,1732547433956,-850.0022726,0.0004259,2]
[343291986,1732547435051,-55484.02203809,0.0004259,2]
[343291987,1732547435148,-500.0,0.00040402,31]
[343291988,1732547435158,-500.0,0.00040402,31]
[343291989,1732547435167,-585.19695288,0.00040402,31]
[343291990,1732547435177,-500.0,0.00040402,31]
[343291991,1732547435187,-500.0,0.00040402,31]
[343291992,1732547435197,-500.0,0.00040402,31]
[343291993,1732547435207,-500.0,0.00040402,31]
[343291994,1732547435216,-500.0,0.00040402,31]
[343291995,1732547435225,-500.0,0.00040402,31]
[343291996,1732547435234,-500.0,0.00040402,31]
[343291997,1732547435244,-500.0,0.00040402,31]
[343291998,1732547435254,-500.0,0.00040402,31]
[343291999,1732547435264,-500.0,0.00040402,31]
[343292000,1732547435273,-500.0,0.00040402,31]
[343292001,1732547435282,-500.0,0.00041096,31]
[343292002,1732547435292,-8006.48845805,0.0004259,2]
[343292020,1732547437560,-160.86011511,0.00038733,5]
[343292022,1732547437570,-259.06,0.0003999,10]
[343292024,1732547437580,-57.83130981,0.00040402,31]
[343292026,1732547437655,-442.16869019,0.00040402,31]
[343292027,1732547437668,-500.0,0.00040402,31]
[343292028,1732547437680,-334.10304319,0.00040402,31]
[343292029,1732547437690,-619.32225372,0.00040402,31]
[343292030,1732547437701,-500.0,0.00040402,31]
[343292031,1732547437711,-500.0,0.00040402,31]
[343292032,1732547437722,-500.0,0.00040402,31]
[343292033,1732547437732,-500.0,0.00040402,31]
[343292034,1732547437742,-500.0,0.00040402,31]
[343292035,1732547437752,-500.0,0.00040402,31]
[343292036,1732547437763,-500.0,0.00040402,31]
[343292037,1732547437774,-500.0,0.00040402,31]
[343292038,1732547437784,-500.0,0.00040402,31]
[343292039,1732547437795,-462.27326473,0.00040402,31]
[343292040,1732547437805,-500.0,0.00040402,31]
[343292041,1732547437814,-500.0,0.00040402,31]
[343292042,1732547437824,-500.0,0.00040402,31]
[343292043,1732547437834,-500.0,0.00040402,31]
[343292044,1732547437844,-500.0,0.00040402,31]
[343292045,1732547437854,-500.0,0.00040402,31]
[343292046,1732547437864,-500.0,0.00040402,31]
[343292047,1732547437874,-500.0,0.00040402,31]
[343292048,1732547437884,-500.0,0.00040402,31]
[343292049,1732547437901,-500.0,0.00040402,31]
[343292050,1732547437912,-500.0,0.00040402,31]
[343292051,1732547437922,-500.0,0.00040402,31]
[343292052,1732547437934,-500.0,0.00040402,31]
[343292053,1732547437945,-500.0,0.00040402,31]
[343292054,1732547437956,-500.0,0.00040402,31]
[343292055,1732547437966,-500.0,0.00040402,31]
[343292056,1732547437977,-535.99460735,0.00040402,31]
[343292057,1732547437993,-230.1629868,0.00040402,31]
[343292058,1732547438004,-500.0,0.00040402,31]
[343292059,1732547438013,-500.0,0.00040402,31]
[343292060,1732547438023,-1095.0,0.00040403,2]
[343292061,1732547438033,-282.41353167,0.00041096,31]
[343292062,1732547438042,-29801.36804199,0.0004259,2]
[343292063,1732547438135,-2150.84877883,0.0004259,2]
[343292064,1732547438152,-1212.45000005,0.0004259,2]
[343292065,1732547438164,-1913.195,0.0004259,2]
[343292066,1732547438188,-517.7691157,0.0004259,2]
[343292067,1732547438200,-698.4567,0.0004259,2]
[343292068,1732547438212,-952.755,0.0004259,2]
[343292069,1732547438241,-150.0,0.00040561,28]
[343292070,1732547438251,-500.0,0.00040598,2]
[343292071,1732547438262,-407.42,0.0004259,2]
[343292072,1732547438273,-2626.8,0.0004259,2]
[343292073,1732547438284,-323.43700025,0.0004259,2]
[343292074,1732547438295,-4789.9107,0.0004259,2]
[343292075,1732547438306,-2744.0,0.0004259,2]
[343292076,1732547438330,-2269.6921806,0.0004259,2]
[343292077,1732547438340,-4042.47116127,0.0004259,2]
[343292078,1732547438351,-3416.58726444,0.0004259,2]
[343292093,1732547439584,-316.64609022,0.00040561,2]
[343292094,1732547439593,-5035.84823269,0.0004259,2]
[343292095,1732547439687,-589.6824398,0.0004259,2]
[343292096,1732547439699,-250.74289257,0.0004259,2]
[343292097,1732547439800,-255.1897428,0.00040714,120]
[343292098,1732547439823,-244.8102572,0.00040714,120]
[343292099,1732547439833,-716.91947265,0.0004259,2]
[343292100,1732547439845,-384.626378,0.0004259,2]
[343292101,1732547439903,-150.0,0.00040695,63]
[343292102,1732547439912,-10593.80605001,0.0004259,2]
[343292103,1732547439923,-2174.12999991,0.0004259,2]
[343292104,1732547439953,-2.28945383,0.0004259,2]
[343292105,1732547439964,-242478.6651772,0.0004259,2]
[343292106,1732547439973,-12082.8843,0.0004259,2]
[343292107,1732547439982,-1594.7082,0.0004259,2]
[343292108,1732547439991,-150.0,0.00042635,2]
[343292109,1732547440004,-150.0,0.00042677,2]
[343292110,1732547440014,-167.15,0.0004268,2]
[343292111,1732547440023,-412.52,0.00042739,30]
[343292112,1732547440032,-234.74307054,0.00042739,30]
[343292113,1732547440041,-259.52214462,0.00042785,9]
[343292114,1732547440049,-1689.116463,0.000428,30]
[343292115,1732547440058,-900.0,0.000428,15]
[343292116,1732547440066,-565.0,0.00042841,2]
[343292117,1732547440075,-1258.0,0.00042841,2]
[343292120,1732547440085,-629.0,0.00042841,2]
[343292122,1732547440093,-150.0,0.00042841,2]
[343292124,1732547440102,-1997.0,0.00042841,2]
[343292126,1732547440114,-1930.0,0.00042841,2]
[343292127,1732547440123,-561.0,0.00042841,2]
[343292128,1732547440131,-1262.0,0.00042841,2]
[343292129,1732547440143,-816.0,0.00042841,2]
[343292130,1732547440153,-3753.0,0.00042841,2]
[343292131,1732547440162,-3519.0,0.00042841,2]
[343292132,1732547440171,-980.0,0.00042841,2]
[343292133,1732547440183,-1828.58,0.00042849,2]
[343292134,1732547440192,-159.28360633,0.00042873,3]
[343292135,1732547440202,-152.9,0.00042875,2]
[343292136,1732547440211,-150.0,0.00042882,2]
[343292137,1732547440220,-54675.6924903,0.00042885,7]
[343292138,1732547440229,-2606.05809646,0.00042885,7]
[343292139,1732547440238,-22173.0471414,0.00042885,7]
[343292140,1732547440247,-150.0,0.0004289,2]
[343292141,1732547440255,-1800.0,0.000429,15]
[343292142,1732547440264,-1600.0,0.0004296,2]
[343292143,1732547440273,-160.04763443,0.00042973,28]
[343292144,1732547440282,-150.0,0.00042996,2]
[343292145,1732547440292,-550.0,0.00043,2]
[343292146,1732547440300,-255.1,0.00043,30]
[343292147,1732547440309,-532.474,0.0004312,30]
[343292148,1732547440318,-500.0,0.00043141,120]
[343292149,1732547440327,-1424.54,0.0004315,120]
[343292150,1732547440337,-1424.54,0.0004315,120]
[343292151,1732547440346,-1424.54,0.0004315,120]
[343292152,1732547440355,-1424.54,0.0004315,120]
[343292153,1732547440364,-1424.54,0.0004315,120]
[343292154,1732547440374,-1424.54,0.0004315,120]
[343292155,1732547440383,-1424.54,0.0004315,120]
[343292156,1732547440397,-1424.54,0.0004315,120]
[343292157,1732547440407,-1424.54,0.0004315,120]
[343292158,1732547440417,-1424.54,0.0004315,120]
[343292159,1732547440427,-1424.54,0.0004315,120]
[343292160,1732547440436,-1424.54,0.0004315,120]
[343292161,1732547440445,-1424.54,0.0004315,120]
[343292162,1732547440454,-1424.54,0.0004315,120]
[343292163,1732547440465,-1424.54,0.0004315,120]
[343292164,1732547440474,-1424.54,0.0004315,120]
[343292165,1732547440484,-1424.54,0.0004315,120]
[343292166,1732547440494,-1424.54,0.0004315,120]
[343292167,1732547440503,-1208.51985415,0.0004315,120]
[343292168,1732547440515,-216.02014585,0.0004315,120]
[343292169,1732547440524,-1424.54,0.0004315,120]
[343292170,1732547440534,-1424.54,0.0004315,120]
[343292171,1732547440544,-1424.54,0.0004315,120]
[343292172,1732547440554,-1424.54,0.0004315,120]
[343292173,1732547440564,-1424.64517166,0.0004315,120]
[343292174,1732547440574,-153.47,0.00043191,2]
[343292175,1732547440584,-500.03,0.00043279,2]
[343292176,1732547440597,-150.0,0.00043401,2]
[343292177,1732547440607,-530.88,0.00043403,2]
[343292178,1732547440617,-150.0,0.00043403,2]
[343292179,1732547440626,-1095.0,0.00043403,2]
[343292180,1732547440635,-1000.0,0.000435,7]
[343292181,1732547440650,-3303.56446001,0.00043512,15]
[343292182,1732547440660,-1333.0,0.00043562,120]
[343292183,1732547440669,-1680.0,0.00043637,7]
[343292184,1732547440679,-2000.0,0.00043641,120]
[343292185,1732547440690,-283.454971,0.00043641,120]
[343292186,1732547440699,-150.0,0.0004365,2]
[343292187,1732547440709,-1337.49,0.00043678,30]
[343292188,1732547440719,-1722.13,0.00043691,2]
[343292189,1732547440729,-150.0,0.00043701,2]
[343292190,1732547440738,-389.6136873,0.00043732,2]
[343292191,1732547440748,-218.47173187,0.00043735,20]
[343292192,1732547440758,-150.0,0.00043745,2]
[343292193,1732547440769,-255.7398561,0.00043805,4]
[343292194,1732547440783,-500.0,0.00043835,30]
[343292195,1732547440792,-500.0,0.00043835,30]
[343292196,1732547440801,-602.92398132,0.00043835,30]
[343292197,1732547440811,-500.0,0.00043835,30]
[343292198,1732547440820,-500.0,0.00043835,30]
[343292199,1732547440830,-500.0,0.00043835,30]
[343292200,1732547440839,-500.0,0.00043835,30]
[343292201,1732547440848,-500.0,0.00043835,30]
[343292202,1732547440857,-500.0,0.00043835,30]
[343292203,1732547440867,-500.0,0.00043835,30]
[343292204,1732547440875,-500.0,0.00043835,30]
[343292205,1732547440884,-500.0,0.00043835,30]
[343292206,1732547440898,-500.0,0.00043835,30]
[343292207,1732547440907,-500.0,0.00043835,30]
[343292208,1732547440917,-500.0,0.00043835,30]
[343292209,1732547440926,-500.0,0.00043835,30]
[343292210,1732547440935,-500.0,0.00043835,30]
[343292211,1732547440945,-500.0,0.00043835,30]
[343292212,1732547440955,-500.0,0.00043835,30]
[343292213,1732547440964,-500.0,0.00043835,30]
[343292214,1732547440973,-500.0,0.00043835,30]
[343292215,1732547440982,-500.0,0.00043835,30]
[343292216,1732547440991,-500.0,0.00043835,30]
[343292217,1732547441000,-500.0,0.00043835,30]
[343292218,1732547441009,-500.0,0.00043835,30]
[343292219,1732547441018,-500.0,0.00043835,30]
[343292220,1732547441028,-500.0,0.00043835,30]
[343292221,1732547441037,-500.0,0.00043835,30]
[343292222,1732547441046,-500.0,0.00043835,30]
[343292223,1732547441055,-500.0,0.00043835,2]
[343292224,1732547441064,-500.0,0.00043835,30]
[343292225,1732547441073,-500.0,0.00043835,30]
[343292226,1732547441083,-500.0,0.00043835,30]
[343292227,1732547441097,-500.0,0.00043835,30]
[343292228,1732547441107,-500.0,0.00043835,30]
[343292229,1732547441116,-500.0,0.00043835,30]
[343292230,1732547441126,-450.0,0.00043835,30]
[343292231,1732547441136,-500.0,0.00043835,30]
[343292232,1732547441151,-545.47676122,0.00043835,30]
[343292233,1732547441160,-500.0,0.00043835,30]
[343292234,1732547441173,-500.0,0.00043835,30]
[343292235,1732547441183,-500.0,0.00043835,30]
[343292236,1732547441192,-500.0,0.00043835,30]
[343292237,1732547441201,-500.0,0.00043835,30]
[343292238,1732547441211,-500.0,0.00043835,30]
[343292239,1732547441221,-512.89237464,0.00043835,30]
[343292240,1732547441231,-500.0,0.00043835,30]
[343292241,1732547441240,-500.0,0.00043835,30]
[343292242,1732547441250,-500.0,0.00043835,30]
[343292243,1732547441260,-512.59304427,0.00043835,30]
[343292244,1732547441269,-500.0,0.00043835,30]
[343292245,1732547441279,-500.0,0.00043835,30]
[343292246,1732547441292,-500.0,0.00043835,30]
[343292247,1732547441302,-500.0,0.00043835,30]
[343292248,1732547441311,-500.0,0.00043835,30]
[343292249,1732547441320,-500.0,0.00043835,30]
[343292250,1732547441329,-500.0,0.00043835,30]
[343292251,1732547441339,-500.0,0.00043835,30]
[343292252,1732547441348,-500.0,0.00043835,30]
[343292253,1732547441357,-500.0,0.00043835,30]
[343292254,1732547441367,-500.0,0.00043835,30]
[343292255,1732547441376,-500.0,0.00043835,30]
[343292256,1732547441385,-505.63402746,0.00043835,30]
[343292257,1732547441397,-500.0,0.00043835,30]
[343292258,1732547441407,-500.0,0.00043835,2]
[343292259,1732547441602,-500.0,0.00043835,30]
[343292260,1732547441623,-500.0,0.00043835,30]
[343292261,1732547441636,-500.0,0.00043835,30]
[343292262,1732547441651,-500.0,0.00043835,30]
[343292263,1732547441662,-500.0,0.00043835,30]
[343292264,1732547441672,-500.0,0.00043835,30]
[343292265,1732547441681,-500.0,0.00043835,30]
[343292266,1732547441691,-500.0,0.00043835,30]
[343292267,1732547441700,-500.0,0.00043835,30]
[343292268,1732547441710,-500.0,0.00043835,30]
[343292269,1732547441720,-500.0,0.00043835,30]
[343292270,1732547441730,-500.0,0.00043835,30]
[343292271,1732547441740,-500.0,0.00043835,30]
[343292272,1732547441750,-500.0,0.00043835,30]
[343292273,1732547441759,-500.0,0.00043835,30]
[343292274,1732547441769,-509.66232674,0.00043835,30]
[343292275,1732547441779,-500.0,0.00043835,30]
[343292276,1732547441788,-500.0,0.00043835,30]
[343292277,1732547441797,-500.0,0.00043835,30]
[343292278,1732547441807,-507.24923578,0.00043835,30]
[343292279,1732547441816,-500.0,0.00043835,30]
[343292280,1732547441825,-500.0,0.00043835,30]
[343292281,1732547441834,-500.0,0.00043835,30]
[343292282,1732547441843,-500.0,0.00043835,30]
[343292283,1732547441853,-500.0,0.00043835,30]
[343292284,1732547441862,-500.0,0.00043835,30]
[343292285,1732547441871,-500.0,0.00043835,30]
[343292286,1732547441880,-522.0197029,0.00043835,30]
[343292287,1732547441891,-500.0,0.00043835,30]
[343292288,1732547441900,-500.0,0.00043835,30]
[343292289,1732547441910,-500.0,0.00043835,30]
[343292290,1732547441919,-500.0,0.00043835,30]
[343292291,1732547441929,-500.0,0.00043835,30]
[343292292,1732547441938,-500.0,0.00043835,30]
[343292293,1732547441947,-500.0,0.00043835,30]
[343292294,1732547441956,-500.0,0.00043835,30]
[343292295,1732547441965,-500.0,0.00043835,30]
[343292296,1732547441974,-500.0,0.00043835,30]
[343292297,1732547441983,-500.0,0.00043835,30]
[343292298,1732547441992,-500.0,0.00043835,30]
[343292299,1732547442000,-500.0,0.00043835,30]
[343292300,1732547442010,-505.12807402,0.00043835,30]
[343292301,1732547442018,-500.0,0.00043835,30]
[343292302,1732547442027,-500.0,0.00043835,30]
[343292303,1732547442036,-500.0,0.00043835,30]
[343292304,1732547442045,-500.0,0.00043835,30]
[343292305,1732547442054,-500.0,0.00043835,30]
[343292306,1732547442063,-502.27962519,0.00043835,30]
[343292307,1732547442072,-500.0,0.00043835,30]
[343292308,1732547442081,-500.0,0.00043835,30]
[343292309,1732547442092,-500.0,0.00043835,30]
[343292310,1732547442101,-500.0,0.00043835,30]
[343292311,1732547442114,-500.0,0.00043835,30]
[343292312,1732547442124,-500.0,0.00043835,30]
[343292313,1732547442133,-500.0,0.00043835,30]
[343292314,1732547442147,-500.0,0.00043835,30]
[343292315,1732547442156,-1000.0,0.00043835,30]
[343292316,1732547442166,-505.72237677,0.00043835,30]
[343292317,1732547442176,-500.0,0.00043835,30]
[343292318,1732547442190,-500.0,0.00043835,30]
[343292319,1732547442200,-494.36228285,0.00043835,30]
[343292320,1732547442210,-500.0,0.00043835,30]
[343292321,1732547442223,-500.0,0.00043835,30]
[343292322,1732547442233,-500.0,0.00043835,30]
[343292323,1732547442242,-508.05624209,0.00043835,30]
[343292324,1732547442251,-500.0,0.00043835,30]
[343292325,1732547442261,-500.0,0.00043835,30]
[343292326,1732547442270,-500.0,0.00043835,30]
[343292327,1732547442279,-507.14156238,0.00043835,30]
[343292328,1732547442289,-500.0,0.00043835,30]
[343292329,1732547442299,-500.0,0.00043835,30]
[343292330,1732547442308,-500.0,0.00043835,30]
[343292331,1732547442317,-500.0,0.00043835,30]
[343292332,1732547442326,-509.22329938,0.00043835,30]
[343292333,1732547442336,-500.0,0.00043835,30]
[343292334,1732547442345,-500.0,0.00043835,30]
[343292335,1732547442354,-500.0,0.00043835,30]
[343292336,1732547442363,-500.0,0.00043835,30]
[343292337,1732547442374,-500.0,0.00043835,30]
[343292338,1732547442385,-504.19426334,0.00043835,30]
[343292339,1732547442400,-509.29381566,0.00043835,30]
[343292340,1732547442410,-500.0,0.00043835,30]
[343292341,1732547442419,-500.0,0.00043835,30]
[343292343,1732547442431,-500.0,0.00043835,30]
[343292344,1732547442439,-500.0,0.00043835,30]
[343292346,1732547442449,-500.0,0.00043835,30]
[343292348,1732547442458,-155.01343479,0.00043835,30]
[343292364,1732547442690,-344.98656521,0.00043835,30]
[343292365,1732547442699,-500.0,0.00043835,30]
[343292366,1732547442709,-154.88031473,0.00043835,30]
[343292367,1732547442719,-500.0,0.00043835,30]
[343292368,1732547442727,-500.0,0.00043835,30]
[343292369,1732547442736,-500.0,0.00043835,30]
[343292370,1732547442745,-500.0,0.00043835,30]
[343292371,1732547442754,-500.0,0.00043835,30]
[343292372,1732547442764,-518.09303019,0.00043835,30]
[343292373,1732547442774,-500.0,0.00043835,30]
[343292374,1732547442783,-538.8278424,0.00043835,30]
[343292375,1732547442792,-500.0,0.00043835,30]
[343292376,1732547442802,-500.0,0.00043835,30]
[343292377,1732547442811,-250.0,0.00043835,30]
[343292378,1732547442821,-530.87492212,0.00043835,30]
[343292379,1732547442830,-500.0,0.00043835,30]
[343292380,1732547442840,-500.0,0.00043835,30]
[343292381,1732547442849,-500.0,0.00043835,30]
[343292382,1732547442858,-500.0,0.00043835,30]
[343292383,1732547442867,-500.0,0.00043835,30]
[343292384,1732547442875,-500.0,0.00043835,30]
[343292385,1732547442884,-150.0,0.00043835,30]
[343292386,1732547442897,-500.0,0.00043835,30]
[343292387,1732547442906,-500.0,0.00043835,30]
[343292388,1732547442916,-500.0,0.00043835,30]
[343292389,1732547442925,-500.0,0.00043835,30]
[343292390,1732547442934,-500.0,0.00043835,30]
[343292391,1732547442944,-500.0,0.00043835,30]
[343292392,1732547442953,-500.0,0.00043835,30]
[343292393,1732547442962,-504.93306293,0.00043835,30]
[343292394,1732547442971,-500.0,0.00043835,30]
[343292395,1732547442981,-500.0,0.00043835,30]
[343292396,1732547442989,-500.0,0.00043835,30]
[343292397,1732547442998,-646.8,0.00043835,30]
[343292398,1732547443007,-500.0,0.00043835,30]
[343292399,1732547443016,-500.0,0.00043835,30]
[343292400,1732547443026,-500.0,0.00043835,30]
[343292401,1732547443035,-500.0,0.00043835,30]
[343292402,1732547443044,-500.0,0.00043835,30]
[343292403,1732547443053,-500.0,0.00043835,30]
[343292404,1732547443062,-500.0,0.00043835,30]
[343292405,1732547443070,-500.0,0.00043835,30]
[343292406,1732547443080,-500.0,0.00043835,30]
[343292407,1732547443090,-500.0,0.00043835,30]
[343292408,1732547443099,-500.0,0.00043835,30]
[343292409,1732547443112,-500.0,0.00043835,30]
[343292410,1732547443121,-500.0,0.00043835,30]
[343292411,1732547443131,-500.0,0.00043835,30]
[343292412,1732547443143,-500.0,0.00043835,30]
[343292413,1732547443153,-979.48976242,0.00043835,30]
[343292414,1732547443166,-88.18023758,0.00043835,30]
[343292415,1732547443174,-500.0,0.00043835,30]
[343292416,1732547443186,-500.0,0.00043835,30]
[343292417,1732547443196,-500.0,0.00043835,30]
[343292418,1732547443205,-297.68460818,0.00043835,30]
[343292419,1732547443216,-202.31539182,0.00043835,30]
[343292420,1732547443225,-500.0,0.00043835,30]
[343292421,1732547443234,-500.0,0.00043835,30]
[343292422,1732547443243,-500.0,0.00043835,30]
[343292423,1732547443252,-209.35436818,0.00043835,30]
[343292424,1732547443269,-290.64563182,0.00043835,30]
[343292425,1732547443278,-302.96691875,0.00043835,30]